[Event "Romanian Rapid Open 2022"]
[Site "Sebes"]
[Date "2022.12.02"]
[Round "7.11"]
[White "Tampea, Radu"]
[Black "Baratosi, Daniel"]
[Result "0-1"]
[ECO "B07"]
[WhiteElo "2110"]
[BlackElo "2335"]
[Annotator "TA"]
[PlyCount "104"]
[EventDate "2022.12.02"]
[EventType "rapid"]
[EventCountry "ROU"]
[SourceTitle "playchess.com"]
[Source "ChessBase"]
[SourceQuality "1"]
[TimeControl "600+5"]

{[%evp 9,104,41,52,16,29,27,40,37,40,8,20,4,52,46,89,32,41,18,64,0,0,0,0,0,130,142,126,133,138,-34,-20,-243,-251,-323,-263,-253,-250,-329,-228,-231,-239,-273,-270,-289,-264,-288,-272,-281,-287,-310,-305,-293,-275,-272,-270,-239,-201,-249,-249,-292,-278,-490,-296,-491,-505,-503,-503,-493,-491,-484,-477,-555,-544,-689,-692,-673,-664,-750,-699,-2721,-1845,-29967,-29970,-29970,-748,-29971,-29972,-29985,-29986,-29986,-29987,-29987,-29988,-29988,-29989,-29989,-29990]} 1. d4 {[%emt 0:00:01]} d6 {[%emt 0:00:07]} 2. e4 {[%emt 0:00:03]} Nf6 {[%emt 0:00:09]} 3. Nc3 {[%emt 0:00:01]} c6 {[%emt 0:00:01]} 4. Be3 {[%emt 0:00:02]} Qa5 {[%emt 0:00:22]} 5. f3 {[%emt 0:00:09]} e5 {[%emt 0:00:12]} 6. Bc4 {[%emt 0:00:42] B07: Pirc Defence: Miscellaneous Systems.} Nbd7 {[%emt 0:00:26]} 7. a3 {[%emt 0:00:08]} Be7 {[%emt 0:00:08]} 8. Nge2 {[%emt 0:00:01] White is slightly better.} O-O {[%emt 0:01:04]} 9. O-O {[%emt 0:00:02] [#]} b5 $146 {[%emt 0:00:25]} ({Predecessor:} 9... Qc7 10. g4 d5 11. exd5 Nb6 12. Ba2 Rd8 13. Bf2 Nfxd5 14. Nxd5 Nxd5 15. c4 Nf6 {½-½ (53) Lemmers,O (2370)-Galego,L (2440) Sas van Gent 1994}) 10. Bb3 {[%emt 0:00:01]} Bb7 {[%emt 0:00:06]} (10... Qc7 $11) 11. Ng3 $36 {[%emt 0:00:14][%mdl 2048] White has some pressure.} Rfe8 {[%emt 0:01:51]} 12. Qe2 {[%emt 0:00:45]} ({White should play} 12. Nf5 $16) 12... Bf8 $14 {[%emt 0:00:10]} 13. Nf5 {[%emt 0:00:17]} (13. dxe5 {simplifies} Nxe5 14. Rad1 Qc7 15. f4) 13... a6 {[%emt 0:01:33]} (13... exd4 $11 {should be considered.} 14. Nxd4 (14. Bxd4 g6 $14) 14... d5) 14. Qf2 {[%emt 0:00:28]} (14. Rad1 $14) 14... exd4 $1 $11 {[%emt 0:00:06]} 15. Bxd4 {[%emt 0:00:15] [#] Qg3 is the strong threat.} c5 $1 {[%emt 0:00:02][%cal Bc6c5,Bc5c4,Bc4b3][%mdl 32]} 16. Qg3 {[%emt 0:02:11]} g6 {[%emt 0:00:47]} (16... cxd4 $11 17. Nh6+ Kh8 18. Nxf7+ Kg8) 17. Bxf6 $16 {[%emt 0:00:16]} (17. Nxd6 Bxd6 18. Qxd6 cxd4 19. Qxd4 Rad8 $17) 17... Nxf6 {[%emt 0:00:02][%cal Bd7f6,Bf6h5,Bh5g7][%mdl 32]} 18. Nxd6 {[%emt 0:00:06]} c4 {[%emt 0:01:18] Strongly threatening ...Qb6+.} 19. Nxb7 $2 {[%emt 0:00:39] Pair of Knights!} (19. Nxe8 $16 Nxe8 20. Ba2) 19... Qb6+ $15 {[%emt 0:00:04]} 20. Kh1 $2 {[%emt 0:00:02] Loses the game.} (20. Qf2 $11 {and White has nothing to worry.} Qxb7 21. Ba2) 20... cxb3 $19 {[%emt 0:00:11]} ({Inferior is} 20... Qxb7 21. Ba2 $11) 21. Qg5 {[%emt 0:02:37]} h6 {[%emt 0:00:19]} ({Not} 21... Qxb7 22. Qxf6 Bg7 23. Qh4 $11) 22. Qf4 {[%emt 0:01:36]} Nh5 {[%emt 0:00:10] Prevents e5.} (22... Qxb7 23. Qxf6 Bg7 24. Qf4 $11) 23. Nd5 {[%emt 0:00:01]} Qxb7 {[%emt 0:00:27]} 24. Qc7 {[%emt 0:00:02]} Reb8 {[%emt 0:01:08]} ({Weaker is} 24... Qxc7 25. Nxc7 Red8 26. Nxa8 bxc2 27. Nc7) 25. g4 {[%emt 0:00:35]} Qxc7 {[%emt 0:00:16]} 26. Nxc7 {[%emt 0:00:02]} Ra7 {[%emt 0:00:01]} 27. Nd5 {[%emt 0:00:03]} Ng7 {[%emt 0:00:02]} 28. cxb3 {[%emt 0:00:01]} Ne6 {[%emt 0:00:03]} 29. Rac1 {[%emt 0:00:04]} Bg7 {[%emt 0:00:04]} 30. Rf2 {[%emt 0:00:10]} Nd4 {[%emt 0:00:12]} 31. b4 {[%emt 0:00:01]} Kh8 {[%emt 0:00:10]} 32. Kg2 {[%emt 0:00:02]} f5 {[%emt 0:00:07]} 33. gxf5 {[%emt 0:00:05]} gxf5 {[%emt 0:00:02]} 34. Kh3 {[%emt 0:00:32]} Rf7 {[%emt 0:00:09]} 35. Rcf1 $2 {[%emt 0:00:12]} (35. Rc7 Rbf8 36. Rxf7 Rxf7 37. exf5) 35... Rbf8 {[%emt 0:00:05] And now ...fxe4 would win.} 36. Kg2 $2 {[%emt 0:00:05]} (36. Nf4 {might work better.} Rg8 37. Rd2) 36... fxe4 {[%emt 0:00:10]} 37. fxe4 {[%emt 0:00:02]} Rxf2+ {[%emt 0:00:01]} 38. Rxf2 {[%emt 0:00:01]} Rxf2+ {[%emt 0:00:02]} 39. Kxf2 {[%emt 0:00:46]} Be5 {[%emt 0:00:03] Inhibits Nc7.} 40. Ne7 {[%emt 0:00:00] Hoping for Ng6+.} Kg7 {[%emt 0:00:05] Inhibits Ng6.} 41. Ke3 {[%emt 0:00:00]} Kf7 {[%emt 0:00:25] Prevents h3.} 42. Nd5 {[%emt 0:00:00]} Ne6 {[%emt 0:00:07]} 43. b3 {[%emt 0:00:00]} Bxh2 {[%emt 0:00:02]} 44. a4 {[%emt 0:00:00]} Be5 {[%emt 0:00:07] aiming for ...h5.} 45. axb5 {[%emt 0:00:18]} axb5 {[%emt 0:00:01]} 46. Kf3 {[%emt 0:00:01]} Ng5+ {[%emt 0:00:09]} (46... h5 $142 47. Ne3 Nd4+ 48. Kg2 Nxb3 49. Kh3 Nd2 50. Kh4 Kg6 51. Nd5 Nf3+ 52. Kh3 Ng5+ 53. Kh4 Bd6 54. e5 Nf3+ 55. Kh3 Bxe5 56. Kg2 Nd4 57. Kf2 Kf5 58. Ne7+ Kg5 59. Kg2 Bd6 60. Nd5 Kf5 61. Kh3 Ke5 62. Ne3 Bxb4 63. Kg2 Bd2 64. Nd1 Kd5 65. Kh2 b4 66. Kg3 Bg5 67. Kh3 Ke4 68. Nf2+ Ke3 69. Nd1+ Kd2 70. Nb2 b3 71. Kh2 Nb5 72. Kg3 Kc3 73. Na4+ Kc2 74. Kg2 Nc3 75. Kf3 Nxa4 76. Ke4 Bd2 77. Kf3 b2 78. Ke4 b1=Q 79. Ke5 Qb6 80. Ke4 Qc6+ 81. Kf5 Nc5 82. Ke5 Qe6+ 83. Kd4 Be3#) 47. Ke3 {[%emt 0:00:01]} h5 {[%emt 0:00:02][%cal Bh6h5,Bh5h4,Bh4h3][%mdl 32] Black mates.} 48. Nb6 {[%emt 0:00:11]} Ke6 {[%emt 0:00:12]} 49. Nd5 {[%emt 0:00:13]} h4 {[%emt 0:00:06]} 50. Nf4+ {[%emt 0:00:01]} Bxf4+ 51. Kxf4 {[%emt 0:00:01] [#]} h3 $1 {[%emt 0:00:03]} 52. Kg3 {[%emt 0:00:01]} Ke5 {[%emt 0:00:01] Weighted Error Value: White=0.80/Black=0.32} 0-1

[Event "Romanian Rapid Open 2022"]
[Site "Sebes"]
[Date "2022.12.02"]
[Round "7.12"]
[White "Oltean, Cristian-Daniel"]
[Black "Ghimpu, Samuel-Timotei"]
[Result "1/2-1/2"]
[ECO "B09"]
[WhiteElo "1896"]
[BlackElo "2455"]
[Annotator "TA"]
[PlyCount "121"]
[EventDate "2022.12.02"]
[EventType "rapid"]
[EventCountry "ROU"]
[SourceTitle "playchess.com"]
[Source "ChessBase"]
[SourceQuality "1"]
[TimeControl "600+5"]

{[%evp 15,121,41,47,31,45,35,34,42,38,35,53,53,59,50,44,0,42,31,69,66,95,90,102,84,111,29,27,32,70,20,29,24,38,0,31,0,0,0,0,0,0,0,57,-152,0,0,0,-28,-13,-67,-67,-68,-64,-80,-66,-150,-150,-150,-150,-358,-150,-150,-150,-150,-150,-330,-330,-588,-143,-143,-143,-165,-122,-157,-104,-111,-90,-90,-90,-90,-90,-91,-90,-91,-56,-56,-56,-56,-56,-64,-56,-56,-56,-64,0,0,0,0,0,0,0,0,0,0,0,-14,0,0]} 1. d4 {[%emt 0:00:01]} d6 {[%emt 0:01:38]} 2. e4 {[%emt 0:00:04]} g6 {[%emt 0:00:08]} 3. Nc3 {[%emt 0:00:04]} Bg7 {[%emt 0:00:01]} 4. f4 {[%emt 0:00:01]} Nf6 {[%emt 0:00:37]} 5. Nf3 {[%emt 0:00:02]} O-O {[%emt 0:00:35]} 6. Bd3 {[%emt 0:00:10]} Na6 {[%emt 0:00:43][%cal Bb8a6,Ba6c7,Bc7b5,Bb5c3][%mdl 32]} 7. O-O {[%emt 0:00:19]} c5 {[%emt 0:00:04]} 8. d5 {[%emt 0:00:05]} Bg4 {[%emt 0:00:33] 8...Bg4 scores better than 8...Rb8.} 9. Bc4 {[%emt 0:00:40] B09: Pirc Defence: Austrian Attack.} Rb8 {[%emt 0:01:45]} 10. Qe2 {[%emt 0:01:21]} Nc7 {[%emt 0:00:35][%cal Ob7b5]} 11. a4 {[%emt 0:00:04] Prevents b5. White is slightly better.} a6 {[%emt 0:00:15][%cal Ob7b5]} 12. a5 {[%emt 0:00:07]} b5 {[%emt 0:00:08]} 13. axb6 {[%emt 0:00:06]} Rxb6 {[%emt 0:00:02] [#]} 14. Na4 $146 {[%emt 0:00:56]} (14. Bxa6 $2 Qa8 15. e5 Nd7 $19) ({Predecessor:} 14. h3 Bc8 15. e5 Nd7 16. Rd1 Rb8 17. Bb3 Nb6 18. Ne4 h6 19. c4 f5 20. Ned2 e6 21. dxe6 Qe8 22. exd6 Nxe6 23. Qe3 Bb7 24. Re1 Nd4 {0-1 (24) Trevis,R-Nakamura,T IECG email 2004}) 14... Rb8 {[%emt 0:00:37]} 15. Nc3 {[%emt 0:00:13]} ({Stronger than} 15. Bxa6 Nxa6 16. Qxa6 Nxe4 $17) 15... Nb5 {[%emt 0:00:32]} 16. Rxa6 {[%emt 0:00:26]} Nxc3 {[%emt 0:00:56]} 17. bxc3 {[%emt 0:00:02]} Nd7 {[%emt 0:00:03]} 18. Bd2 {[%emt 0:00:20]} Qc7 {[%emt 0:00:42]} 19. Bb5 {[%emt 0:00:17]} Rb6 {[%emt 0:01:01]} 20. Rfa1 {[%emt 0:00:09]} ({White should play} 20. Ra4 $16) 20... Bxf3 $11 {[%emt 0:00:09]} 21. gxf3 {[%emt 0:00:03]} Rfb8 {[%emt 0:00:10]} 22. Ra7 {[%emt 0:00:28] White is more active.} (22. Rxb6 $14 Nxb6 23. Kg2) 22... R6b7 {[%emt 0:00:09]} 23. Rxb7 {[%emt 0:00:09]} Qxb7 {[%emt 0:00:02]} 24. Ra5 {[%emt 0:00:22]} c4 {[%emt 0:00:11] Hoping for ...Qb6+.} ({Resist} 24... Qb6 25. c4 Nf6 26. e5 $16) 25. Qf2 {[%emt 0:01:20]} (25. Qxc4 $2 Qb6+ 26. Kg2 Qxa5 $17) (25. Be3 $5 {[%cal Re2c4]}) 25... Nc5 {[%emt 0:00:22]} 26. Bxc4 {[%emt 0:00:13]} Qb1+ {[%emt 0:00:03]} 27. Kg2 {[%emt 0:00:01]} Qxc2 {[%emt 0:00:06][%cal Oc5e4] White must now prevent ...Nxe4!} 28. Ra2 {[%emt 0:00:30]} Qb1 {[%emt 0:00:02]} (28... Rb2 $1 $11 29. Rxb2 (29. Ra8+ $2 Bf8 $19) 29... Qxb2) 29. Be3 $2 {[%emt 0:00:19] [#]} (29. Qf1 $14) 29... Bxc3 $2 {[%emt 0:00:11]} (29... Nxe4 $1 $17 {[%mdl 512]} 30. Qc2 Qxc2+ 31. Rxc2 Nxc3) 30. Qc2 {[%emt 0:00:30]} Qb4 {[%emt 0:00:06]} 31. Be2 {[%emt 0:00:37]} h5 {[%emt 0:00:05]} 32. Bxc5 {[%emt 0:00:04]} ({Better is} 32. Qd1 $11) 32... Qxc5 $15 {[%emt 0:00:06]} 33. Qd3 {[%emt 0:01:03]} Bf6 {[%emt 0:00:02]} 34. Rc2 {[%emt 0:00:32]} Qb4 {[%emt 0:00:05]} 35. Rc6 {[%emt 0:00:08]} (35. Qd2 $15) 35... Qe1 $17 {[%emt 0:00:05] ...Rb1 is the strong threat.} 36. Qd1 {[%emt 0:00:08] [#]} Qh4 {[%emt 0:00:03]} 37. Qc1 $2 {[%emt 0:00:17] [#]} (37. Rc4 $17 {was worth a try.}) 37... Rb2 {[%emt 0:00:03]} (37... Bd4 $1 $19 {has better winning chances. ( -> ...Qf2+)} 38. Rc2 Qf2+ 39. Kh3 Rb3) 38. Rc2 {[%emt 0:00:13]} Rxc2 {[%emt 0:00:02]} 39. Qxc2 {[%emt 0:00:01]} Qxf4 {[%emt 0:00:01][%mdl 4096] Endgame Threatens to win with ...Be5. KQB-KQB} 40. Qc8+ $2 {[%emt 0:00:12]} (40. Kh1 $17) 40... Kg7 $19 {[%emt 0:00:01]} 41. Qh3 $2 {[%emt 0:00:11]} (41. Bb5) 41... Be5 $2 {[%emt 0:00:02]} (41... Qd2 $19 42. Kf1 Qc1+ 43. Kg2 Qc2) 42. Qg3 $17 {[%emt 0:00:07]} Qe3 {[%emt 0:00:05]} 43. Qe1 {[%emt 0:00:07]} f5 {[%emt 0:00:21]} 44. Qf2 {[%emt 0:00:36]} Qxf2+ {[%emt 0:00:07]} (44... Qf4 $142 45. Qg3 Qd2) 45. Kxf2 {[%emt 0:00:01]} fxe4 {[%emt 0:00:05] KB-KB} 46. h3 {[%emt 0:00:04]} Bd4+ {[%emt 0:00:05]} 47. Kg3 {[%emt 0:00:02]} exf3 {[%emt 0:00:04]} 48. Bxf3 {[%emt 0:00:03]} Kf6 {[%emt 0:00:02]} 49. Be2 {[%emt 0:00:10]} e6 {[%emt 0:00:04]} 50. dxe6 Kxe6 {[%emt 0:00:01]} 51. Bd3 {[%emt 0:00:03]} Kf6 {[%emt 0:00:02]} 52. Be4 {[%emt 0:00:03]} Be5+ {[%emt 0:00:05]} 53. Kf3 {[%emt 0:00:01]} g5 {[%emt 0:00:08]} 54. Bd5 {[%emt 0:00:05]} g4+ {[%emt 0:00:10]} (54... Kf5 $15) 55. hxg4 $11 {[%emt 0:00:02] The position is equal.} h4 {[%emt 0:00:01]} 56. Kg2 {[%emt 0:00:04]} Kg5 {[%emt 0:00:02]} 57. Be6 {[%emt 0:00:05]} Bf6 {[%emt 0:00:02]} 58. Kh3 {[%emt 0:00:02]} Kf4 {[%emt 0:00:02]} 59. Ba2 {[%emt 0:00:06]} Bg5 {[%emt 0:00:22]} 60. Kh2 {[%emt 0:00:07]} Kxg4 {[%emt 0:00:03]} 61. Kh1 {[%emt 0:00:01] And White is the lucky defender.   Weighted Error Value: White=0.39/Black=0.35} 1/2-1/2

[Event "Romanian Rapid Open 2022"]
[Site "Sebes"]
[Date "2022.12.02"]
[Round "7.13"]
[White "Dan, Cantemir-Dorian"]
[Black "Sfarlog, Tudor-Vlad"]
[Result "1-0"]
[ECO "B08"]
[WhiteElo "2036"]
[BlackElo "2283"]
[Annotator "TA"]
[PlyCount "77"]
[EventDate "2022.12.02"]
[EventType "rapid"]
[EventCountry "ROU"]
[SourceTitle "playchess.com"]
[Source "ChessBase"]
[SourceQuality "1"]
[TimeControl "600+5"]

{[%evp 15,77,22,26,16,18,0,0,0,0,-36,-38,-39,-18,-48,-31,-304,-81,-75,-34,-44,-36,-27,-29,-70,-36,-31,-22,-36,-35,-41,-20,-112,-12,-115,-76,-315,-328,-328,-199,-242,-231,-314,-29,-21,105,103,120,102,944,893,926,902,857,482,481,474,462,440,2451,2573,1677,5702,1437,1089]} 1. e4 {[%emt 0:00:01]} g6 {[%emt 0:00:01]} 2. Nc3 {[%emt 0:00:16]} Bg7 {[%emt 0:00:02]} 3. d4 {[%emt 0:00:06]} d6 {[%emt 0:00:01]} 4. Be2 {[%emt 0:00:12]} Nf6 {[%emt 0:00:07]} 5. Nf3 {[%emt 0:00:03]} O-O {[%emt 0:00:04]} 6. O-O {[%emt 0:00:05]} c6 {[%emt 0:00:01]} 7. a4 {[%emt 0:00:07]} Qc7 {[%emt 0:00:12]} 8. Re1 {[%emt 0:01:06]} e5 {[%emt 0:00:13]} 9. d5 {[%emt 0:00:25] B08: Pirc Defence: Classical System.} cxd5 {[%emt 0:01:14]} 10. Nxd5 {[%emt 0:01:36]} Nxd5 {[%emt 0:00:03]} 11. exd5 {[%emt 0:00:05] [#] The position is equal.} Nd7 $146 {[%emt 0:00:29]} ({Predecessor:} 11... a5 12. c4 Na6 13. b3 Bf5 14. Nh4 e4 15. Rb1 Bd7 16. g3 Nc5 17. Bb2 Bxb2 18. Rxb2 {0-1 (43) Gromotka,H-Serner,A GER email 2000}) 12. c4 {[%emt 0:00:16]} a5 {[%emt 0:00:05]} 13. Ra3 {[%emt 0:00:50]} h6 {[%emt 0:00:03]} 14. Qc2 {[%emt 0:01:07]} Nc5 {[%emt 0:00:12]} 15. Bd2 $2 {[%emt 0:00:32][%mdl 8192]} (15. Be3 $15) 15... f5 $2 {[%emt 0:00:19]} (15... e4 $1 $19 16. Nh4 g5) 16. Bc3 $17 {[%emt 0:00:11]} g5 {[%emt 0:01:16]} 17. Nd2 {[%emt 0:00:30]} g4 {[%emt 0:01:08]} 18. f3 {[%emt 0:00:21]} h5 {[%emt 0:00:10]} 19. Kh1 {[%emt 0:00:06]} Qd8 {[%emt 0:00:47]} 20. Nb3 {[%emt 0:00:11]} b6 {[%emt 0:00:30]} 21. Nxc5 {[%emt 0:00:35]} bxc5 {[%emt 0:00:02]} 22. Qd2 {[%emt 0:00:37]} f4 {[%emt 0:00:53]} 23. Bf1 {[%emt 0:00:26]} (23. Rb3 $11) 23... Bf5 {[%emt 0:00:50]} (23... Bf6 $17 {White must now prevent ...Bh4.} 24. Bd3 Bh4) 24. Kg1 {[%emt 0:00:08] [#]} (24. Bd3 $11) 24... Qg5 $1 {[%emt 0:00:10]} 25. fxg4 $2 {[%emt 0:00:48]} (25. Kh1 $17) 25... hxg4 $19 {[%emt 0:00:23]} 26. g3 {[%emt 0:00:05]} Bg6 {[%emt 0:00:10]} 27. gxf4 {[%emt 0:00:42]} Rxf4 {[%emt 0:00:02] Strongly threatening ...g3.} (27... Qxf4 28. Qxf4 exf4 29. Re6 $15) 28. Qg2 {[%emt 0:00:05] Inhibits g3.} g3 $2 {[%emt 0:01:31]} ({Black should play} 28... Raf8 $19 {[%cal Og6e4] Threatens to win with ...Be4!} 29. Bd2 {[#]} Qh5 $1 30. Bxf4 exf4) 29. hxg3 $11 {[%emt 0:00:17]} Rg4 {[%emt 0:00:07]} (29... Rf7 $11) 30. Bd2 $16 {[%emt 0:00:06]} Qe7 {[%emt 0:00:09]} 31. Be2 {[%emt 0:00:11] Inhibits e4.} Be4 $2 {[%emt 0:00:06][%mdl 8192]} (31... Rd4 $16 32. Bc1 Qd7) 32. Qh3 $18 {[%emt 0:00:11] White is clearly winning.} Rg6 {[%emt 0:00:10]} 33. Bh5 {[%emt 0:00:03][%csl LRe4,LRg6]} Bc2 {[%emt 0:00:37]} 34. Bxg6 {[%emt 0:00:05]} Bxg6 {[%emt 0:00:02]} 35. Qg4 {[%emt 0:00:06]} Qe8 {[%emt 0:00:28]} 36. Rb3 {[%emt 0:00:09] Hoping for Rb7.} e4 {[%emt 0:00:06]} (36... Bh5 $142 37. Qg5 Qg6 38. Qxg6 Bxg6) 37. Rb7 {[%emt 0:00:05] Intending Bc3 and mate.} Bd4+ {[%emt 0:00:02]} 38. Be3 {[%emt 0:00:10] Threatening mate with Bxd4.} Bg7 {[%emt 0:00:07]} 39. Kg2 {[%emt 0:00:10] Weighted Error Value: White=0.57/Black=0.60} 1-0

[Event "Romanian Rapid Open 2022"]
[Site "Sebes"]
[Date "2022.12.02"]
[Round "7.14"]
[White "Anghel, Iulian-Mihai"]
[Black "Itkis, Boris"]
[Result "1-0"]
[ECO "B07"]
[WhiteElo "2061"]
[BlackElo "2343"]
[Annotator "TA"]
[PlyCount "89"]
[EventDate "2022.12.02"]
[EventType "rapid"]
[EventCountry "ROU"]
[SourceTitle "playchess.com"]
[Source "ChessBase"]
[SourceQuality "1"]
[TimeControl "600+5"]

{[%evp 10,89,64,40,74,56,77,31,54,36,33,30,49,27,25,27,25,-14,-17,-13,-12,-16,-7,-14,-10,-11,-4,-10,-10,-2,-6,-3,-9,-10,0,-2,-12,-14,-11,-10,-14,-18,-19,-11,0,-12,-13,-20,-22,-25,-8,-10,-1,-20,-11,-27,-16,-20,-14,-18,-8,-10,-10,-15,-7,-8,-8,-29,-25,-79,-79,-99,-111,-104,-106,-103,494,484,523,519,655,633]} 1. e4 {[%emt 0:00:03]} d6 {[%emt 0:00:00]} 2. d4 {[%emt 0:00:01]} Nf6 {[%emt 0:00:01]} 3. Nc3 {[%emt 0:00:04]} g6 {[%emt 0:00:01]} 4. Be3 {[%emt 0:00:07]} c6 {[%emt 0:00:03]} 5. f3 {[%emt 0:00:10]} Qb6 {[%emt 0:00:01]} 6. Qc1 {[%emt 0:00:16]} Qc7 {[%emt 0:00:04] B07: Pirc Defence: Miscellaneous Systems.} 7. a4 {[%emt 0:00:15][%cal Ba2a4,Ba4a5][%mdl 32]} Nbd7 {[%emt 0:00:03]} 8. Bc4 {[%emt 0:00:12]} (8. Qd2 $16) 8... Bg7 {[%emt 0:00:05][%cal Od6d5] [#] White is slightly better.} 9. a5 $146 {[%emt 0:00:06]} ({Predecessor:} 9. Nge2 a5 10. Bh6 Bxh6 11. Qxh6 d5 12. Bb3 dxe4 13. fxe4 e5 14. Qg7 Rf8 15. O-O {1-0 (49) Toth,T (2112)-Dobai,S (2138) Hungary 2018}) 9... O-O {[%emt 0:00:09]} 10. Nge2 {[%emt 0:00:02]} Rb8 {[%emt 0:00:30]} 11. O-O {[%emt 0:00:21]} (11. Bb3 {feels hotter.} e5 12. h4 exd4 13. Bxd4 Re8 14. Qg5) 11... b5 {[%emt 0:00:00]} 12. axb6 {[%emt 0:00:04]} axb6 {[%emt 0:00:01]} 13. d5 {[%emt 0:02:30]} b5 {[%emt 0:00:08]} 14. Ra7 {[%emt 0:00:29]} (14. Bb3 {simplifies} cxd5 15. Nxd5 Nxd5 16. exd5 Nb6 17. Nc3) 14... Rb7 {[%emt 0:00:05]} (14... Bb7 {is interesting.} 15. dxc6 bxc4 16. cxd7 Ra8) 15. Rxb7 {[%emt 0:00:08]} Bxb7 {[%emt 0:00:03]} 16. dxc6 $1 {[%emt 0:00:02][%cal Oc4f7]} bxc4 {[%emt 0:00:08]} 17. cxd7 {[%emt 0:00:33]} Qxd7 {[%emt 0:00:07]} 18. Bh6 {[%emt 0:00:09]} Qc7 {[%emt 0:00:06]} 19. Bxg7 {[%emt 0:00:03]} Qb6+ {[%emt 0:00:01]} 20. Kh1 {[%emt 0:00:08]} Kxg7 {[%emt 0:00:01]} 21. Qd2 {[%emt 0:00:48]} Rb8 {[%emt 0:00:10]} 22. Rb1 {[%emt 0:00:15]} Bc6 {[%emt 0:00:26][%cal Bb7c6,Bc6d7,Bd7e6][%mdl 32]} 23. Qd4 {[%emt 0:00:21]} Qxd4 {[%emt 0:00:06]} 24. Nxd4 {[%emt 0:00:01] Pair of Knights!} Bd7 {[%emt 0:00:07]} 25. Kg1 {[%emt 0:00:12]} e5 {[%emt 0:00:06]} 26. Nde2 {[%emt 0:00:02]} Kf8 {[%emt 0:00:01]} 27. b4 {[%emt 0:01:05]} cxb3 {[%emt 0:00:01]} 28. cxb3 {[%emt 0:00:05]} Be6 {[%emt 0:00:13]} 29. b4 {[%emt 0:00:18]} Bc4 {[%emt 0:00:19]} 30. Kf2 {[%emt 0:00:02]} Ke7 {[%emt 0:00:05]} 31. Ke3 {[%emt 0:00:05]} Nd7 {[%emt 0:00:04]} 32. Nc1 {[%emt 0:00:43]} (32. Na4 $5) 32... Kd8 {[%emt 0:00:21]} 33. Nd3 {[%emt 0:00:16]} Ra8 {[%emt 0:00:27]} 34. Nb2 {[%emt 0:00:30]} Bb3 {[%emt 0:00:28]} 35. Nd3 {[%emt 0:00:35]} Be6 {[%emt 0:00:52]} 36. Nb5 {[%emt 0:00:34]} Rb8 {[%emt 0:00:50]} 37. Nc3 {[%emt 0:00:36]} ({Don't play} 37. Nxd6 Ke7 38. Nxf7 Bxf7 $17) 37... Nb6 {[%emt 0:00:27]} 38. Nb2 {[%emt 0:00:32]} Ra8 {[%emt 0:00:04]} 39. Rc1 {[%emt 0:00:29]} (39. g4 $11) 39... Ra3 $17 {[%emt 0:00:19]} 40. Kd2 {[%emt 0:00:01]} Rb3 {[%emt 0:00:31][%csl LRb2,LRb4]} 41. Nd3 {[%emt 0:00:06] [#]} Nc4+ $1 {[%emt 0:00:06]} 42. Ke2 {[%emt 0:00:05]} Kc7 $2 {[%emt 0:00:42][%mdl 8192]} (42... Nb2 $17 {Threatens to win with ...Bc4.} 43. Nf2 Rxb4) 43. Nd5+ $18 {[%emt 0:00:08] White is clearly winning.} Kd8 {[%emt 0:00:40]} 44. Rxc4 {[%emt 0:00:13]} Ra3 45. b5 {[%emt 0:00:00] Weighted Error Value: White=0.09 (flawless) /Black=0.29 (precise)} 1-0